bitfinex-derivatives/quotes_ETHF0:USTF0_20250326
["timestamp","ask_amount","ask_price","bid_price","bid_amount"]
[1743002345942,3.2078,2014.1,2014.0,0.99292]
[1743002346147,4.2007,2014.1,2013.9,0.99294]
[1743002346450,4.2007,2014.1,2013.9,0.99297]
[1743002346451,0.6496,2014.0,2013.9,0.99297]
[1743002346939,1.64252,2014.0,2013.8,5.56343343]
[1743002347347,1.64252,2014.0,2013.9,0.99297]
[1743002348135,0.6496,2014.0,2013.9,0.99297]
[1743002349047,1.64252,2014.0,2013.9,0.99297]
[1743002349248,0.6496,2014.0,2013.9,0.99297]
[1743002349634,1.64252,2014.0,2013.9,0.99297]
[1743002350540,0.99297,2013.9,2013.8,2.00042343]
[1743002350742,1.64255,2014.0,2013.9,0.99297]
[1743002351137,0.6496,2014.0,2013.9,0.99297]
[1743002351943,3.2078,2014.1,2014.0,0.99292]
[1743002352449,3.2078,2014.1,2014.0,4.55492]
[1743002352847,0.67184343,2014.3,2014.2,0.99283]
[1743002353248,2.10384343,2014.3,2014.2,0.99283]
[1743002355349,2.10384343,2014.3,2014.1,2.35145]
[1743002355543,0.99292,2014.0,2013.9,2.99747]
[1743002355745,3.2078,2014.1,2014.0,0.99292]
[1743002356349,4.513,2014.1,2014.0,2.35742]
[1743002356545,3.2078,2014.1,2014.0,3.06532]
[1743002356852,0.67184343,2014.3,2014.2,0.99283]
[1743002357054,0.00744343,2014.3,2014.2,0.99283]
[1743002357245,1.31264343,2014.3,2014.2,0.99283]
[1743002359445,0.00744343,2014.3,2014.2,0.99283]
[1743002359652,0.00744343,2014.3,2014.2,5.92163]
[1743002359841,1.41514343,2014.3,2014.2,5.92163]
[1743002360853,2.40792343,2014.3,2014.2,3.561]
[1743002361246,2.40792343,2014.3,2014.0,2.36069]
[1743002362046,2.40796343,2014.3,2014.0,0.99291]
[1743002362241,2.40794343,2014.3,2014.0,0.99291]
[1743002362551,1.41514343,2014.3,2014.1,0.99284]
[1743002362748,2.40792343,2014.3,2014.0,1.3637]
[1743002362952,2.40792343,2014.3,2014.1,0.99284]
[1743002363153,0.99283,2014.2,2014.0,2.35659]
[1743002363354,1.4136,2014.1,2014.0,5.91759]
[1743002364255,4.6214,2014.1,2014.0,4.55389]
[1743002364653,6.32839,2014.1,2013.9,0.99293]
[1743002364955,0.6855,2014.0,2013.9,0.99293]
[1743002365257,2.0085,2014.0,2013.9,0.99293]
[1743002365853,2.0085,2014.0,2013.9,2.42403]
[1743002366049,3.2078,2014.1,2014.0,0.99292]
[1743002366243,3.2078,2014.1,2014.0,2.42402]
[1743002366445,0.00744343,2014.3,2014.2,0.99283]
[1743002366752,0.00744343,2014.3,2014.2,4.55283]
[1743002367258,0.00744343,2014.3,2014.2,5.98393]
[1743002367755,0.00744343,2014.3,2014.2,6.64343]
[1743002370848,0.00744343,2014.3,2014.2,4.55283]
[1743002371954,0.00744343,2014.3,2014.2,5.97143]
[1743002372757,1.323,2014.4,2014.3,0.99278]
[1743002374765,3.2078,2014.5,2014.4,0.99273]
[1743002375664,0.00489544,2014.6,2014.5,0.99268]
[1743002375865,4.5984,2014.8,2014.7,0.99258]
[1743002377363,1.3906,2014.8,2014.7,0.99258]
[1743002377664,0.6537,2015.0,2014.9,0.99248]
[1743002378960,1.9496,2015.0,2014.9,0.99248]
[1743002379654,1.9496,2015.0,2014.9,3.04738]
[1743002379854,1.9496,2015.0,2014.9,3.41062912]
[1743002382062,1.2959,2015.0,2014.9,3.41062912]
[1743002382761,0.6745,2015.3,2015.2,0.99233]
[1743002383068,0.6745,2015.3,2015.2,4.55033]
[1743002385962,2.0301,2015.3,2015.2,4.55033]
[1743002386563,2.0301,2015.3,2015.2,3.558]
[1743002388970,3.2078,2015.7,2015.2,6.058]
[1743002389179,3.2078,2016.0,2015.5,3.2078]
[1743002389379,1.397,2015.9,2015.6,4.8974]
[1743002390271,1.397,2015.9,2015.6,3.556]
[1743002396776,3.2078,2015.7,2015.4,3.555]
[1743002396973,2.6184,2015.6,2015.4,3.555]
[1743002397175,1.2936,2015.5,2015.4,3.555]
[1743002398572,1.2936,2015.5,2015.4,4.9586]
[1743002399377,1.2936,2015.5,2015.4,3.555]
[1743002399679,1.2936,2015.5,2015.4,3.554]
[1743002399878,1.2936,2015.5,2015.2,1.4036]
[1743002400073,1.2936,2015.5,2015.3,3.554]
[1743002400776,1.2936,2015.5,2015.3,4.9576]
[1743002401977,1.2936,2015.5,2015.0,1.36374343]
[1743002402180,3.2078,2015.4,2015.0,0.00744343]
[1743002402381,1.2923,2015.3,2015.0,3.56144343]
[1743002402672,0.6531,2015.2,2015.1,1.4019]
[1743002402885,1.2923,2015.3,2015.1,1.4019]
[1743002403074,1.2923,2015.3,2015.1,2.7917]
[1743002403581,1.2923,2015.3,2015.2,1.4019]
[1743002403878,0.6531,2015.5,2015.2,1.4019]
[1743002404179,1.9454,2015.5,2015.3,3.554]
[1743002404371,1.9454,2015.5,2015.4,1.4019]
[1743002404573,0.6531,2015.5,2015.4,1.4019]
[1743002405882,3.8853,2016.0,2015.4,1.4019]
[1743002406085,4.5965,2016.0,2015.5,1.359]
[1743002406275,4.5965,2016.0,2015.6,4.9238]
[1743002406584,4.5965,2016.0,2015.7,1.3698]
[1743002407081,4.5965,2016.0,2015.6,3.554]
[1743002407476,4.5965,2016.0,2015.6,4.9238]
[1743002407676,3.2078,2015.7,2015.4,3.554]
[1743002407881,0.6813,2015.6,2015.0,0.00744343]
[1743002408079,3.2078,2015.3,2015.0,4.91054343]
[1743002408280,1.3518,2015.2,2015.0,4.91054343]
[1743002408780,1.3518,2015.2,2015.0,1.35654343]
[1743002408980,1.3518,2015.2,2015.0,0.00744343]
[1743002415484,3.2078,2015.3,2015.0,3.21524343]
[1743002415683,3.2078,2015.3,2015.1,4.8698]
[1743002415880,3.2078,2015.3,2015.2,1.3168]
[1743002416086,4.5605,2015.7,2015.2,1.3168]
[1743002416389,4.5605,2015.7,2015.3,0.7056]
[1743002416580,4.5605,2015.7,2015.4,1.3168]
[1743002416787,4.5605,2015.7,2015.1,4.2146]
[1743002416987,4.5605,2015.7,2015.2,1.3452]
[1743002418792,3.2078,2015.4,2015.2,1.3452]
[1743002418996,0.6883,2015.3,2015.2,1.3452]
[1743002421197,2.0485,2015.3,2015.2,1.3452]
[1743002422082,2.7025,2015.3,2015.2,1.3452]
[1743002422287,2.7025,2015.3,2015.0,0.00744343]
[1743002422484,3.2078,2015.1,2015.0,0.00744343]
[1743002424192,5.7078,2015.1,2014.5,0.6756]
[1743002424397,4.9122,2015.2,2014.3,3.2078]
[1743002424398,3.2078,2014.7,2014.3,3.2078]
[1743002424698,1.9638,2014.6,2014.4,1.3487]
[1743002424896,1.3098,2014.5,2014.4,1.3487]
[1743002425494,1.3098,2014.5,2014.2,50.03744343]
[1743002425700,3.2078,2014.4,2014.2,50.03744343]
[1743002426001,1.4228,2014.3,2014.2,50.03744343]
[1743002426299,1.4228,2014.3,2014.2,0.00744343]
[1743002427492,2.0965,2014.3,2014.2,0.00744343]
[1743002427794,3.2078,2014.4,2014.2,0.00744343]
[1743002428299,3.2078,2014.4,2014.2,1.41794343]
[1743002428694,0.00744343,2014.7,2014.3,3.552]
[1743002428894,0.00744343,2014.7,2014.4,5.2781]
[1743002429090,0.00744343,2014.7,2014.5,1.392]
[1743002429289,0.00744343,2014.7,2014.6,3.552]
[1743002429497,0.00744343,2014.7,2014.6,4.944]
[1743002432699,0.00744343,2014.7,2014.6,7.444]
[1743002432907,3.2078,2015.1,2014.6,7.444]
[1743002433099,3.2078,2015.1,2014.7,4.5436]
[1743002433402,1.3049,2015.2,2014.8,2.0313]
[1743002433604,1.3049,2015.2,2014.9,4.8878]
[1743002434005,1.3049,2015.2,2015.0,1.3358]
[1743002434405,3.2078,2015.4,2015.0,1.3358]
[1743002434598,1.9599,2015.5,2015.1,3.2078]
[1743002434905,1.9599,2015.5,2015.2,5.5425]
[1743002435108,1.3058,2015.4,2015.3,1.3935]
[1743002437796,1.3058,2015.4,2015.1,3.21524343]
[1743002437996,3.2078,2015.3,2015.1,3.55844343]
[1743002438204,1.4175,2015.2,2015.1,0.00744343]
[1743002442609,3.2078,2015.3,2015.1,0.00744343]
[1743002442807,3.8628,2015.5,2015.2,3.55]
[1743002443008,1.3099,2015.4,2015.3,1.3444]
[1743002444419,3.8628,2015.5,2015.3,1.3444]
[1743002444618,1.3123,2015.4,2015.3,1.3444]
[1743002445906,3.2078,2015.8,2015.3,1.3444]
[1743002446112,0.6868,2015.7,2015.3,1.3444]
[1743002446312,1.9991,2015.7,2015.3,1.3444]
[1743002446819,1.3123,2015.6,2015.3,1.3444]
[1743002447413,3.2078,2015.5,2015.1,0.00744343]
[1743002447615,1.3732,2015.4,2015.1,0.00744343]
[1743002447815,0.6955,2015.3,2015.1,1.30654343]
[1743002448017,1.3732,2015.2,2015.1,1.30654343]
[1743002449126,4.581,2015.2,2015.1,0.00744343]
[1743002459528,4.581,2015.2,2014.7,1.2923]
[1743002459732,3.2078,2014.8,2014.4,50.029]
[1743002459924,2.0364,2014.7,2014.4,50.029]
[1743002460123,1.3479,2014.6,2014.4,50.029]
[1743002460327,1.3479,2014.6,2014.4,51.4579]
[1743002460529,1.3479,2014.6,2014.5,1.4289]
[1743002460738,1.3479,2014.6,2014.4,50.029]
[1743002461236,3.2078,2014.5,2014.4,50.029]
[1743002461430,3.2078,2014.5,2014.3,1.43634343]
[1743002461625,1.3479,2014.4,2014.3,1.43634343]
[1743002463432,1.3479,2014.4,2014.3,0.00744343]
[1743002466827,4.6085,2014.5,2014.3,0.00744343]
[1743002467027,1.4007,2014.4,2014.3,0.00744343]
[1743002467234,3.2078,2014.5,2014.3,0.00744343]
[1743002467436,4.6085,2014.5,2014.3,0.00744343]
[1743002467826,1.4007,2014.4,2014.3,0.00744343]
[1743002468629,4.9487,2014.4,2013.8,1.6533]
[1743002468830,3.2078,2014.0,2013.8,1.6533]
[1743002469033,3.2078,2014.0,2013.8,3.0291]
[1743002469330,1.3003,2013.9,2013.8,3.0291]
[1743002469729,1.3003,2013.9,2013.8,1.0]
[1743002469928,3.8003,2013.9,2013.6,0.00744343]
[1743002470128,3.2078,2013.7,2013.0,40.8]
[1743002470336,3.2078,2013.2,2013.0,42.1758]
[1743002470526,3.2078,2013.2,2013.1,1.3758]
[1743002470724,3.2078,2013.5,2013.1,1.3758]
[1743002471332,3.21524343,2013.5,2013.1,1.38324343]
[1743002471923,3.21524343,2013.5,2013.1,0.00744343]
[1743002472129,3.21524343,2013.5,2013.1,1.33994343]
[1743002472728,3.2078,2013.2,2013.1,1.33994343]
[1743002472934,3.2078,2013.2,2013.1,0.00744343]
[1743002479844,3.2078,2013.2,2012.6,0.7122]
[1743002480044,0.7085,2013.3,2012.6,0.7122]
[1743002480045,3.2078,2012.8,2012.6,0.7122]
[1743002480344,3.2078,2012.8,2012.6,2.053]
[1743002480737,3.2078,2012.8,2012.7,1.4273]
[1743002482448,3.2078,2012.8,2012.7,2.1271]
[1743002484040,3.2078,2012.8,2012.5,0.00744343]
[1743002484240,1.4227,2012.7,2012.5,1.30814343]
[1743002484835,0.6693,2012.6,2012.5,0.00744343]
[1743002486447,3.1693,2012.6,2011.9,3.2078]
[1743002486743,3.2078,2012.2,2012.0,2.1256]
[1743002487151,1.2946,2012.1,2012.0,2.1256]
[1743002489344,0.00744343,2012.3,2012.0,2.1256]
[1743002490253,3.2078,2012.2,2012.0,1.4197]
[1743002490552,1.3777,2012.1,2012.0,1.4197]
[1743002491251,0.00744343,2012.3,2012.0,1.4197]
[1743002491454,3.2078,2012.2,2012.0,1.4197]
[1743002491646,1.3777,2012.1,2011.9,0.7061]
[1743002491847,1.3777,2012.1,2011.9,2.1214]
[1743002493352,1.3777,2012.1,2012.0,1.4233]
[1743002495050,3.2078,2012.2,2012.0,1.4233]
[1743002495246,4.5116,2012.2,2012.0,1.4233]
[1743002496346,3.2078,2012.2,2012.0,1.4233]
[1743002496846,4.6155,2012.2,2012.0,1.4233]
[1743002498049,3.2078,2012.2,2012.0,1.4233]
[1743002500350,3.2078,2012.5,2012.0,7.1311]
[1743002500552,3.2078,2012.5,2012.0,4.6311]
[1743002500754,3.2078,2012.5,2012.1,1.3977]
[1743002501054,3.2078,2012.5,2012.2,4.2634]
[1743002501256,3.2078,2012.5,2012.3,1.3977]
[1743002501456,3.2078,2012.5,2012.3,2.0971]
[1743002501850,3.2078,2012.5,2012.4,1.3655]
[1743002504761,0.00744343,2012.6,2012.4,4.5733]
[1743002505154,0.00744343,2012.6,2012.5,1.2957]
[1743002506953,0.00744343,2012.6,2012.5,4.8437]
[1743002507159,3.8748,2013.2,2012.5,7.3437]
[1743002507358,3.8748,2013.2,2012.6,2.0056]
[1743002507565,3.8748,2013.2,2012.7,1.4303]
[1743002507764,3.8748,2013.2,2012.7,2.1282]
[1743002508262,3.88224343,2013.2,2012.8,1.4303]
[1743002508649,3.2078,2012.9,2012.8,1.4303]
[1743002508855,3.2078,2012.9,2012.7,0.6979]
[1743002509162,3.2078,2012.9,2012.7,2.1282]
[1743002509965,3.88224343,2013.2,2012.8,1.4303]
[1743002510652,3.21524343,2013.2,2012.9,3.547]
[1743002510964,0.00744343,2013.2,2013.0,5.2333]
[1743002511166,0.00744343,2013.2,2013.1,41.5058]
[1743002511360,0.00744343,2013.2,2013.1,42.8495]
[1743002513467,3.2078,2013.5,2013.1,45.3495]
[1743002513660,3.2078,2013.8,2013.3,3.2078]
[1743002513969,3.8879,2014.1,2013.6,3.2078]
[1743002514270,3.2078,2014.1,2013.7,6.3555]
[1743002514568,649.97,2017.2,2013.9,3.2078]
[1743002514569,3.2078,2014.4,2013.9,3.2078]
[1743002514765,0.00744343,2014.1,2014.0,4.9794]
[1743002515264,0.00744343,2014.1,2014.0,7.4794]
[1743002517266,1.3368,2014.9,2014.0,14.0094]
[1743002517464,3.2078,2015.0,2014.6,3.2078]
[1743002517672,3.2078,2015.0,2014.7,1.3784]
[1743002517867,3.2078,2015.0,2014.7,2.0804]
[1743002521070,1.3719,2014.9,2014.7,2.0804]
[1743002521973,1.3719,2014.9,2014.7,3.543]
[1743002522474,1.3719,2014.9,2014.7,4.9362]
[1743002522974,1.3719,2014.9,2014.7,3.543]
[1743002523166,0.6592,2014.8,2014.6,3.2078]
[1743002523472,1.3752,2014.7,2014.6,3.2078]
[1743002523873,4.583,2014.7,2014.3,3.2078]
[1743002524072,4.583,2014.7,2013.8,40.80744343]
[1743002524073,4.583,2014.7,2014.1,3.543]
[1743002524576,3.2078,2014.4,2014.1,3.543]
[1743002524877,3.2078,2014.4,2013.9,4.5071]
[1743002524878,2.7291,2014.3,2013.9,3.2078]
[1743002525577,2.7291,2014.3,2013.8,0.00744343]
[1743002525874,3.2078,2014.1,2013.8,0.00744343]
[1743002526071,1.2925,2014.0,2013.8,0.00744343]
[1743002526768,1.2925,2014.0,2013.8,3.91934315]
[1743002527071,1.2925,2014.0,2013.8,5.31394315]
[1743002527373,1.2925,2014.0,2013.9,1.3946]
[1743002529571,1.2925,2014.0,2013.8,3.91934315]
[1743002530480,1.2925,2014.0,2013.8,0.00744343]
[1743002530780,1.3539,2014.3,2013.9,6.7498]
[1743002530976,1.3979,2014.2,2014.0,1.3193]
[1743002532378,3.2078,2014.7,2014.0,1.3193]
[1743002532577,1.3145,2014.6,2014.1,0.68]
[1743002532877,1.3145,2014.6,2014.2,4.9727]
[1743002534779,1.3145,2014.6,2014.2,3.542]
[1743002535073,1.4062,2014.5,2014.2,3.542]
[1743002535275,1.3901,2014.4,2014.2,3.542]
[1743002536269,1.3901,2014.4,2014.3,1.3728]
[1743002537172,3.2078,2014.7,2014.3,1.3728]
[1743002537173,0.6939,2014.9,2014.3,1.3728]
[1743002537373,1.3901,2014.9,2014.5,3.2078]
[1743002537570,1.3901,2014.9,2014.6,4.9138]
[1743002537774,1.3901,2014.9,2014.7,42.1728]
[1743002537974,1.3901,2014.9,2014.8,0.6974]
[1743002538277,0.00744343,2015.1,2014.8,0.6974]
[1743002538479,1.31354343,2015.1,2014.9,4.5344]
[1743002539073,1.31354343,2015.1,2014.9,8.0754]
[1743002539576,0.00744343,2015.1,2014.9,8.0754]
[1743002540576,0.00744343,2015.1,2014.9,4.5344]
[1743002540880,0.00744343,2015.1,2014.8,3.54]
[1743002541076,0.69334343,2015.1,2014.8,4.8881]
[1743002541281,1.3309,2015.0,2014.8,3.54]
[1743002541575,1.3309,2015.0,2014.7,53.592]
[1743002542179,1.3309,2015.0,2014.7,54.9401]
[1743002544185,0.00744343,2015.1,2014.9,3.2078]
[1743002544380,0.00744343,2015.1,2015.0,1.3754]
[1743002544979,0.00744343,2015.1,2015.0,4.5832]
[1743002545284,0.00744343,2015.1,2015.0,1.3754]
[1743002545685,0.00744343,2015.1,2015.0,8.1222]
[1743002547685,0.00744343,2015.1,2015.0,4.9144]
[1743002547982,0.00744343,2015.1,2015.0,1.3754]
[1743002548187,0.00744343,2015.1,2014.8,0.00744343]
[1743002548383,0.68834343,2015.1,2014.8,0.00744343]
[1743002548584,1.3471,2015.0,2014.8,0.00744343]
[1743002548878,1.3471,2015.0,2014.8,3.21524343]
[1743002549086,1.3471,2015.0,2014.9,1.3688]
[1743002549687,0.00744343,2015.1,2014.9,1.3688]
[1743002549889,0.00744343,2015.1,2015.0,3.539]
[1743002551581,0.00744343,2015.1,2015.0,6.039]
[1743002551980,0.00744343,2015.1,2015.0,6.6939]
[1743002552888,0.00744343,2015.1,2015.0,4.1939]
[1743002553688,0.6652,2015.8,2015.0,7.1639]
[1743002553887,4.5206,2015.7,2015.1,2.0071]
[1743002554077,3.2078,2015.4,2015.1,2.0071]
[1743002554274,1.3128,2015.3,2015.1,2.0071]
[1743002554880,1.3128,2015.3,2015.2,1.3105]
[1743002555085,1.3128,2015.3,2015.2,4.5183]
[1743002555388,1.3128,2015.3,2015.2,1.3105]
[1743002555883,1.3128,2015.3,2015.1,0.6966]
[1743002556082,1.3128,2015.3,2015.1,2.0071]
[1743002556281,1.3128,2015.3,2015.1,0.6966]
[1743002556585,1.3128,2015.3,2014.9,3.537]
[1743002556785,1.362,2015.2,2014.9,4.9452]
[1743002556991,1.3232,2015.1,2014.9,3.537]
[1743002557685,1.3232,2015.1,2014.9,4.9452]
[1743002558985,1.3232,2015.1,2014.8,0.00744343]
[1743002559191,4.531,2015.1,2014.8,0.00744343]
[1743002559390,4.531,2015.1,2014.8,1.41564343]
[1743002560595,1.3232,2015.1,2014.8,1.41564343]
[1743002560792,1.3232,2015.1,2014.9,6.7448]
[1743002561087,3.2078,2015.4,2015.0,1.3334]
[1743002561291,1.344,2015.3,2015.1,0.6532]
[1743002561594,1.344,2015.3,2015.2,1.3334]
[1743002561789,1.344,2015.3,2015.1,41.4532]
[1743002562094,1.344,2015.3,2015.1,40.8]
[1743002562294,1.2973,2015.2,2014.9,5.5307]
[1743002562493,1.2962,2015.1,2014.9,5.5307]
[1743002563096,4.504,2015.1,2014.9,5.5307]
[1743002563404,4.504,2015.1,2014.9,3.537]
[1743002566798,4.504,2015.1,2014.8,1.29914343]
[1743002567388,4.504,2015.1,2014.8,0.00744343]
[1743002567597,4.504,2015.1,2014.9,1.3567]
[1743002569795,1.2962,2015.1,2014.9,1.3567]
[1743002570990,3.2078,2015.4,2015.0,3.536]
[1743002571191,1.362,2015.3,2015.1,1.3216]
[1743002571493,1.362,2015.3,2015.1,2.0146]
[1743002571883,1.362,2015.3,2015.2,1.3805]
[1743002574499,1.362,2015.3,2015.2,4.5883]
[1743002576099,1.362,2015.3,2015.2,1.3805]
[1743002576486,1.362,2015.3,2015.2,4.5883]
[1743002578896,1.362,2015.3,2015.1,0.693]
[1743002579098,1.362,2015.3,2015.1,3.535]
[1743002579496,1.362,2015.3,2014.9,0.6901]
[1743002579706,3.2078,2015.1,2014.9,0.6901]
[1743002579894,3.2078,2015.1,2014.8,4.91104343]
[1743002579895,1.9891,2015.0,2014.8,4.91104343]
[1743002580090,1.9891,2015.0,2014.8,0.00744343]
[1743002580394,0.6657,2014.9,2014.8,0.00744343]
[1743002580711,2.0029,2014.9,2014.8,0.00744343]
[1743002581397,2.0029,2014.9,2014.3,42.1686]
[1743002581594,3.2078,2014.8,2014.3,42.1686]
[1743002581900,1.3665,2014.7,2014.3,42.1686]
[1743002582200,1.3665,2014.7,2014.0,1.3889]
[1743002582201,1.3665,2014.7,2014.1,4.8656]
[1743002582403,1.3665,2014.7,2014.2,0.00744343]
[1743002582702,0.00744343,2014.6,2014.2,40.80744343]
[1743002583096,0.00744343,2014.6,2014.2,42.13804343]
[1743002584089,3.2078,2014.5,2014.2,0.00744343]
[1743002584296,2.0509,2014.4,2014.2,0.00744343]
[1743002584500,2.7381,2014.4,2014.2,0.00744343]
[1743002585104,1.3832,2014.4,2014.2,0.00744343]
[1743002585304,0.00744343,2014.6,2014.3,3.535]
[1743002585501,0.00744343,2014.6,2014.4,1.3259]
[1743002586006,0.00744343,2014.6,2014.5,40.8]
[1743002586901,1.34914343,2014.6,2014.5,40.8]
[1743002590405,0.00744343,2014.6,2014.5,40.8]
[1743002590703,0.00744343,2014.6,2014.5,46.0554]
[1743002591109,0.00744343,2014.6,2014.5,48.5554]
[1743002591300,2.043,2015.2,2014.5,48.5554]
[1743002591498,2.043,2015.2,2014.6,3.535]
[1743002591704,1.3265,2015.2,2014.8,3.2078]
[1743002591999,1.3265,2015.2,2014.9,4.8774]
[1743002592203,1.3265,2015.2,2015.0,0.7132]
[1743002592510,2.50342243,2016.4,2015.1,1.3424]
[1743002592511,3.2078,2015.7,2015.1,1.3424]
[1743002592711,1.3265,2015.6,2015.2,3.535]
[1743002593011,2.0088,2015.6,2015.2,4.92044343]
[1743002594510,2.6628,2015.6,2015.2,4.92044343]
[1743002596916,3.2078,2015.4,2015.2,4.92044343]
[1743002597214,1.3921,2015.3,2015.2,4.92044343]
[1743002599319,1.3363,2015.6,2015.2,4.92044343]
[1743002599618,1.3025,2015.5,2015.2,4.92044343]
[1743002599808,1.3025,2015.5,2015.2,5.31997304]
[1743002600416,3.2078,2015.8,2015.2,5.31997304]
[1743002600717,1.3025,2015.7,2015.2,5.31997304]
[1743002602122,1.3025,2015.7,2015.4,3.2078]
[1743002602314,1.3025,2015.7,2015.5,5.5523]
[1743002602515,1.3025,2015.7,2015.5,6.2043]
[1743002603615,3.2078,2016.1,2015.5,6.2043]
[1743002603817,1.3369,2016.2,2015.8,3.2078]
[1743002604123,3.2078,2016.0,2015.9,4.8418]
[1743002604427,3.2078,2016.0,2015.9,3.533]
[1743002604608,3.2078,2016.0,2015.8,0.38330874]
[1743002604609,3.2078,2016.0,2015.8,0.00744343]
[1743002604813,1.3369,2015.9,2015.8,0.00744343]
[1743002610624,1.3369,2015.9,2015.8,1.34974343]
[1743002613827,1.334,2016.1,2015.8,1.34974343]
[1743002614032,3.2078,2016.3,2015.9,4.1968]
[1743002614329,1.3015,2016.2,2016.0,2.0828]
[1743002614934,1.3015,2016.2,2015.8,0.00744343]
[1743002615128,2.6409,2016.2,2015.9,1.407]
[1743002615330,2.6409,2016.2,2015.9,2.0728]
[1743002617233,2.6409,2016.2,2015.8,0.68324343]
[1743002617429,2.6409,2016.2,2015.8,2.10324343]
[1743002617735,2.6409,2016.2,2015.9,1.42]
[1743002618726,3.2078,2016.0,2015.8,0.00744343]
[1743002618921,1.3493,2015.9,2015.8,0.00744343]
[1743002626035,3.8493,2015.9,2015.2,40.8]
[1743002626244,3.2078,2015.3,2015.0,5.6354]
[1743002626431,1.3853,2015.2,2015.0,5.6354]
[1743002626736,1.3853,2015.2,2015.1,40.8]
[1743002627135,3.2078,2015.3,2015.1,40.8]
[1743002627341,3.2078,2015.3,2015.2,1.4137]
[1743002627941,4.5931,2015.3,2015.2,1.4137]
[1743002628638,3.2078,2015.3,2015.2,1.4137]
[1743002629235,0.00744343,2015.4,2015.2,42.2137]
[1743002629540,0.00744343,2015.4,2015.3,4.2078]
[1743002629743,0.00744343,2015.4,2015.3,5.5295]
[1743002637538,1.32674343,2015.4,2015.3,5.5295]
[1743002639847,1.32674343,2015.4,2015.3,1.3217]
[1743002640049,2.71204343,2015.4,2015.1,3.529]
[1743002640235,2.71204343,2015.4,2015.2,1.3344]
[1743002640440,1.432,2015.3,2015.2,1.3344]
[1743002641735,1.432,2015.3,2015.0,1.74238373]
[1743002641940,3.2078,2015.2,2014.9,3.53544343]
[1743002642140,1.417,2015.1,2014.9,1.42834343]
[1743002645153,0.00744343,2015.4,2014.9,1.42834343]
[1743002645357,0.00744343,2015.4,2015.0,3.2078]
[1743002645543,0.00744343,2015.4,2015.1,4.8546]
[1743002645751,0.00744343,2015.4,2015.2,1.9988]
[1743002646055,0.00744343,2015.4,2015.3,1.3266]
[1743002654162,1.39874343,2015.4,2015.2,0.6722]
[1743002654350,0.6697,2015.3,2015.1,51.4324]
[1743002654548,1.3913,2015.2,2015.1,51.4324]
[1743002654760,0.72364343,2015.4,2015.1,50.026]
[1743002654958,1.3913,2015.3,2015.1,50.026]
[1743002655362,2.061,2015.3,2015.1,50.026]
[1743002655755,1.3913,2015.2,2015.1,50.026]
[1743002656560,0.00744343,2015.4,2015.1,50.026]
[1743002656761,1.39874343,2015.4,2015.1,50.026]
[1743002662668,1.3926,2015.3,2015.1,50.026]
[1743002662868,1.4281,2015.2,2015.1,50.026]
[1743002663069,1.4281,2015.2,2014.9,1.37324343]
[1743002663272,3.2078,2015.1,2014.9,0.65984343]
[1743002663463,1.422,2015.0,2014.9,0.65984343]
[1743002663865,3.2078,2015.1,2014.9,0.65984343]
[1743002664057,1.422,2015.0,2014.9,0.65984343]
[1743002664262,3.2078,2015.1,2014.9,0.65984343]
[1743002666868,1.422,2015.2,2015.0,3.2078]
[1743002667174,0.00744343,2015.4,2015.1,3.526]
[1743002667575,0.00744343,2015.4,2015.2,0.7109]
[1743002667770,1.42074343,2015.4,2015.3,0.7164]
[1743002671075,1.42074343,2015.4,2015.3,2.0508]
[1743002673373,1.42074343,2015.4,2015.2,50.7419]
[1743002673574,2.81844343,2015.4,2015.2,52.0776]
[1743002674078,1.3647,2015.3,2015.2,50.031]
[1743002677379,1.3647,2015.3,2015.1,1.3357]
[1743002677582,0.00744343,2015.4,2015.1,1.3357]
[1743002677784,1.39934343,2015.4,2015.1,1.3357]
[1743002680992,0.00744343,2015.4,2015.1,1.3357]
[1743002682884,1.37504343,2015.4,2015.1,1.3357]
[1743002683284,0.00744343,2015.4,2015.1,1.3357]
[1743002685195,0.00744343,2015.4,2015.2,3.2078]
[1743002685399,0.00744343,2015.4,2015.3,5.54]
[1743002685696,3.2078,2016.3,2015.3,6.4896]
[1743002685885,1.3519,2016.2,2015.6,3.2078]
[1743002686088,1.3519,2016.2,2015.7,5.54]
[1743002686290,1.3519,2016.2,2015.8,1.3489]
[1743002686690,1.3519,2016.2,2015.9,3.2078]
[1743002686895,3.2078,2016.3,2016.0,4.8719]
[1743002687099,3.2078,2016.3,2016.1,2.0632]
[1743002687292,3.2078,2016.3,2016.2,1.4181]
[1743002688792,3.2078,2016.3,2016.1,0.7143]
[1743002689102,2.8127,2016.2,2016.1,5.6554]
[1743002690195,2.8127,2016.2,2016.0,3.522]
[1743002690395,1.3823,2016.2,2016.1,1.3857]
[1743002693798,1.3823,2016.2,2016.0,3.522]
[1743002693998,1.3823,2016.2,2016.0,4.8408]
[1743002694195,1.3823,2016.2,2016.1,1.3188]
[1743002696200,3.2078,2016.6,2016.1,1.3188]
[1743002696503,4.5699,2016.6,2016.1,1.3188]
[1743002697809,3.2078,2016.2,2015.9,0.00744343]
[1743002698011,1.3621,2016.1,2015.9,1.35604343]
[1743002698198,1.3621,2016.1,2015.9,0.00744343]
[1743002699510,3.8621,2016.1,2015.9,0.00744343]
[1743002699705,3.8621,2016.1,2015.4,54.9131]
[1743002699910,3.2078,2015.5,2015.4,54.9131]
[1743002700406,3.2078,2015.5,2015.1,1.4009]
[1743002700705,0.6617,2015.4,2015.1,1.40834343]
[1743002701108,1.3744,2015.3,2015.1,1.40834343]